[Event "Late-Titled-Tuesday-Blitz-April-02-2024"]
[Site "Chess.com"]
[Date "2024.04.02"]
[Round "3"]
[White "Vahe_Danielyan"]
[Black "Narek_Ghimoyan"]
[Result "1-0"]
[WhiteElo "2655"]
[BlackElo "2461"]
[TimeControl "180+1"]
[EndTime "14:24:28 PDT"]
[Termination "Vahe_Danielyan won by resignation"]

1. d4 {[%clk 0:03:00.9]} 1... Nf6 {[%clk 0:02:57.8]} 2. Bg5 {[%clk 0:02:58.1]}
2... d5 {[%clk 0:02:57.2]} 3. e3 {[%clk 0:02:56.5]} 3... Nbd7 {[%clk 0:02:50.5]}
4. Nd2 {[%clk 0:02:53.7]} 4... e6 {[%clk 0:02:50.7]} 5. Ngf3 {[%clk 0:02:50.5]}
5... Be7 {[%clk 0:02:51.1]} 6. Bd3 {[%clk 0:02:49.8]} 6... O-O {[%clk
0:02:51.3]} 7. O-O {[%clk 0:02:49.5]} 7... h6 {[%clk 0:02:51.6]} 8. Bh4 {[%clk
0:02:49]} 8... b6 {[%clk 0:02:51.3]} 9. c4 {[%clk 0:02:46.6]} 9... dxc4 {[%clk
0:02:50.4]} 10. Nxc4 {[%clk 0:02:45.1]} 10... Bb7 {[%clk 0:02:50.3]} 11. Rc1
{[%clk 0:02:42.6]} 11... c5 {[%clk 0:02:49.9]} 12. Bg3 {[%clk 0:02:30.1]} 12...
cxd4 {[%clk 0:02:47.7]} 13. Nxd4 {[%clk 0:02:29.8]} 13... Nc5 {[%clk 0:02:46.9]}
14. Bb1 {[%clk 0:02:28.1]} 14... Nce4 {[%clk 0:02:40.6]} 15. Be5 {[%clk
0:02:23.3]} 15... Rc8 {[%clk 0:02:37.6]} 16. Qe2 {[%clk 0:02:23.1]} 16... Qd5
{[%clk 0:02:25]} 17. f3 {[%clk 0:02:19.2]} 17... Nc5 {[%clk 0:01:46.2]} 18. Rfd1
{[%clk 0:02:16.7]} 18... Ba8 {[%clk 0:01:23.4]} 19. Nf5 {[%clk 0:02:13.4]} 19...
Qb7 {[%clk 0:01:23.8]} 20. Ncd6 {[%clk 0:02:11.6]} 20... Bxd6 {[%clk 0:01:09.3]}
21. Nxd6 {[%clk 0:02:12.5]} 21... Qe7 {[%clk 0:01:04]} 22. Nxc8 {[%clk
0:02:04.9]} 22... Rxc8 {[%clk 0:01:04.9]} 23. b4 {[%clk 0:02:04.1]} 23... Nfd7
{[%clk 0:00:58.2]} 24. Bd6 {[%clk 0:01:50.7]} 1-0

[Event "Late-Titled-Tuesday-Blitz-April-02-2024"]
[Site "Chess.com"]
[Date "2024.04.02"]
[Round "3"]
[White "Kavyev_Ruslan"]
[Black "GoValya"]
[Result "1-0"]
[WhiteElo "2400"]
[BlackElo "2233"]
[TimeControl "180+1"]
[EndTime "14:24:28 PDT"]
[Termination "Kavyev_Ruslan won by resignation"]

1. d4 {[%clk 0:03:00.9]} 1... Nf6 {[%clk 0:02:58.6]} 2. c4 {[%clk 0:03:00.7]}
2... g6 {[%clk 0:02:57.6]} 3. Nc3 {[%clk 0:03:00.4]} 3... d5 {[%clk 0:02:57.8]}
4. cxd5 {[%clk 0:03:00.4]} 4... Nxd5 {[%clk 0:02:58.2]} 5. e4 {[%clk 0:03:01.2]}
5... Nxc3 {[%clk 0:02:58.7]} 6. bxc3 {[%clk 0:03:02]} 6... Bg7 {[%clk
0:02:59.2]} 7. Nf3 {[%clk 0:03:02.3]} 7... c5 {[%clk 0:02:59.6]} 8. Bb5+ {[%clk
0:03:02.3]} 8... Bd7 {[%clk 0:02:58.2]} 9. Rb1 {[%clk 0:03:02]} 9... O-O {[%clk
0:02:56.7]} 10. O-O {[%clk 0:03:01]} 10... a6 {[%clk 0:02:47]} 11. Bd3 {[%clk
0:02:58.5]} 11... b5 {[%clk 0:02:45]} 12. Be3 {[%clk 0:02:58.2]} 12... Bg4
{[%clk 0:02:33.1]} 13. e5 {[%clk 0:02:50.6]} 13... Nc6 {[%clk 0:02:27.2]} 14.
Be2 {[%clk 0:02:41.2]} 14... e6 {[%clk 0:02:19.7]} 15. a4 {[%clk 0:02:34]} 15...
cxd4 {[%clk 0:02:12.6]} 16. cxd4 {[%clk 0:02:29.8]} 16... b4 {[%clk 0:02:09.5]}
17. h3 {[%clk 0:02:26]} 17... Bf5 {[%clk 0:02:06.7]} 18. Bd3 {[%clk 0:02:13.8]}
18... Bxd3 {[%clk 0:02:03.8]} 19. Qxd3 {[%clk 0:02:14.7]} 19... Bxe5 {[%clk
0:01:56.2]} 20. Qe4 {[%clk 0:02:03.8]} 20... Bxd4 {[%clk 0:01:42.8]} 21. Nxd4
{[%clk 0:01:59.2]} 21... Nxd4 {[%clk 0:01:42.4]} 22. Bxd4 {[%clk 0:01:59.3]}
22... Qd5 {[%clk 0:01:31.4]} 23. Qxd5 {[%clk 0:01:58.4]} 23... exd5 {[%clk
0:01:32.3]} 24. Rxb4 {[%clk 0:01:58.1]} 24... Rfe8 {[%clk 0:01:25.1]} 25. Be3
{[%clk 0:01:55]} 25... Re6 {[%clk 0:01:20.2]} 26. Rd1 {[%clk 0:01:51.4]} 26...
Rd8 {[%clk 0:01:19.8]} 27. Rb6 {[%clk 0:01:48.9]} 27... Rxb6 {[%clk 0:01:17.6]}
28. Bxb6 {[%clk 0:01:49.8]} 28... f5 {[%clk 0:01:12.2]} 29. Bxd8 {[%clk
0:01:47.9]} 1-0

[Event "Late-Titled-Tuesday-Blitz-April-02-2024"]
[Site "Chess.com"]
[Date "2024.04.02"]
[Round "3"]
[White "Danishcrown"]
[Black "Dhaydon19"]
[Result "0-1"]
[WhiteElo "2468"]
[BlackElo "2663"]
[TimeControl "180+1"]
[EndTime "14:24:41 PDT"]
[Termination "Dhaydon19 won by checkmate"]

1. d4 {[%clk 0:03:00.9]} 1... e6 {[%clk 0:03:00.1]} 2. Nf3 {[%clk 0:03:00.6]}
2... f5 {[%clk 0:02:59.9]} 3. h4 {[%clk 0:02:57]} 3... Nf6 {[%clk 0:02:59.9]} 4.
c3 {[%clk 0:02:54.4]} 4... Be7 {[%clk 0:03:00]} 5. Nbd2 {[%clk 0:02:46.1]} 5...
b5 {[%clk 0:02:58.7]} 6. Qc2 {[%clk 0:02:43.4]} 6... Bb7 {[%clk 0:02:57.9]} 7.
h5 {[%clk 0:02:34.3]} 7... O-O {[%clk 0:02:56.1]} 8. g3 {[%clk 0:02:31.4]} 8...
c5 {[%clk 0:02:51.8]} 9. Bg2 {[%clk 0:02:29.7]} 9... cxd4 {[%clk 0:02:51.3]} 10.
cxd4 {[%clk 0:02:28.6]} 10... Nc6 {[%clk 0:02:51.6]} 11. e3 {[%clk 0:02:22.9]}
11... Nb4 {[%clk 0:02:49.3]} 12. Qb3 {[%clk 0:02:16.9]} 12... Bd5 {[%clk
0:02:46.8]} 13. Qd1 {[%clk 0:02:11.1]} 13... Nd3+ {[%clk 0:02:46.4]} 14. Kf1
{[%clk 0:02:08.9]} 14... Ng4 {[%clk 0:02:43.7]} 15. Qe2 {[%clk 0:01:28.9]} 15...
Ndxf2 {[%clk 0:02:41.7]} 16. Rg1 {[%clk 0:01:15.4]} 16... Ne4 {[%clk 0:02:40.5]}
17. Qe1 {[%clk 0:01:03.2]} 17... Bd6 {[%clk 0:02:33.2]} 18. Ne5 {[%clk
0:00:55.8]} 18... Nxe5 {[%clk 0:02:28.1]} 19. dxe5 {[%clk 0:00:55.7]} 19... Bxe5
{[%clk 0:02:28.5]} 20. Bxe4 {[%clk 0:00:52.4]} 20... fxe4+ {[%clk 0:02:27.4]}
21. Kg2 {[%clk 0:00:52.9]} 21... Rf3 {[%clk 0:02:23.5]} 22. Nxf3 {[%clk
0:00:50.2]} 22... exf3+ {[%clk 0:02:22.2]} 23. Kf2 {[%clk 0:00:50.3]} 23... Be4
{[%clk 0:02:19.3]} 24. Qb4 {[%clk 0:00:48.4]} 24... d5 {[%clk 0:02:16.1]} 25.
Bd2 {[%clk 0:00:45.5]} 25... Qg5 {[%clk 0:02:12.3]} 26. Bc3 {[%clk 0:00:42]}
26... Qxh5 {[%clk 0:02:11.8]} 27. Rh1 {[%clk 0:00:40.1]} 27... Bxg3+ {[%clk
0:02:11.3]} 28. Kxg3 {[%clk 0:00:36.8]} 28... Qg5+ {[%clk 0:02:11.2]} 29. Kf2
{[%clk 0:00:35]} 29... Qg2+ {[%clk 0:02:11.1]} 30. Ke1 {[%clk 0:00:35.9]} 30...
Qe2# {[%clk 0:02:11.8]} 0-1

[Event "Late-Titled-Tuesday-Blitz-April-02-2024"]
[Site "Chess.com"]
[Date "2024.04.02"]
[Round "3"]
[White "NitaLucian"]
[Black "Shahdad2007"]
[Result "0-1"]
[WhiteElo "2340"]
[BlackElo "2586"]
[TimeControl "180+1"]
[EndTime "14:25:00 PDT"]
[Termination "Shahdad2007 won by resignation"]

1. e4 {[%clk 0:03:00.9]} 1... c5 {[%clk 0:02:59.1]} 2. d3 {[%clk 0:03:00.6]}
2... e6 {[%clk 0:02:54.3]} 3. Nd2 {[%clk 0:03:00.7]} 3... d5 {[%clk 0:02:54.5]}
4. Ngf3 {[%clk 0:03:00.5]} 4... Nc6 {[%clk 0:02:55]} 5. Be2 {[%clk 0:03:00.1]}
5... Nf6 {[%clk 0:02:53.6]} 6. O-O {[%clk 0:02:58.9]} 6... Be7 {[%clk
0:02:51.9]} 7. c3 {[%clk 0:02:59.2]} 7... O-O {[%clk 0:02:52]} 8. e5 {[%clk
0:02:59.3]} 8... Nd7 {[%clk 0:02:51.7]} 9. d4 {[%clk 0:03:00.2]} 9... cxd4
{[%clk 0:02:10.5]} 10. cxd4 {[%clk 0:02:59.3]} 10... f6 {[%clk 0:02:11.4]} 11.
exf6 {[%clk 0:02:58.3]} 11... Bxf6 {[%clk 0:02:05.9]} 12. Nb3 {[%clk 0:02:58.7]}
12... e5 {[%clk 0:01:57.5]} 13. dxe5 {[%clk 0:02:57.9]} 13... Ndxe5 {[%clk
0:01:56.8]} 14. Nxe5 {[%clk 0:02:51]} 14... Bxe5 {[%clk 0:01:53.6]} 15. Be3
{[%clk 0:02:38.9]} 15... Bxb2 {[%clk 0:01:49.1]} 16. Rb1 {[%clk 0:02:35.2]}
16... Bf6 {[%clk 0:01:47.8]} 17. Bf3 {[%clk 0:02:35.1]} 17... d4 {[%clk
0:01:20.2]} 18. Bxc6 {[%clk 0:02:34.2]} 18... dxe3 {[%clk 0:01:18.5]} 19. Bd5+
{[%clk 0:02:33.5]} 19... Kh8 {[%clk 0:01:18.1]} 20. fxe3 {[%clk 0:02:33.6]}
20... Bg5 {[%clk 0:01:11.1]} 21. Rxf8+ {[%clk 0:02:28.2]} 21... Qxf8 {[%clk
0:01:10.7]} 22. Qd4 {[%clk 0:02:24.6]} 22... Qe7 {[%clk 0:01:02]} 23. e4 {[%clk
0:02:21.5]} 23... Bf6 {[%clk 0:00:56.7]} 24. Qd3 {[%clk 0:02:09]} 24... Bg4
{[%clk 0:00:54]} 25. Nd4 {[%clk 0:02:04.8]} 25... Qc5 {[%clk 0:00:52]} 26. Rxb7
{[%clk 0:01:40.4]} 26... Bxd4+ {[%clk 0:00:44.2]} 0-1

[Event "Late-Titled-Tuesday-Blitz-April-02-2024"]
[Site "Chess.com"]
[Date "2024.04.02"]
[Round "3"]
[White "shirovin"]
[Black "Juicy_Fork"]
[Result "0-1"]
[WhiteElo "2069"]
[BlackElo "2557"]
[TimeControl "180+1"]
[EndTime "14:25:10 PDT"]
[Termination "Juicy_Fork won by resignation"]

1. d4 {[%clk 0:03:00.9]} 1... Nf6 {[%clk 0:02:59.4]} 2. Bf4 {[%clk 0:03:01.4]}
2... g6 {[%clk 0:02:57.8]} 3. h4 {[%clk 0:03:00.2]} 3... h5 {[%clk 0:02:54]} 4.
Nf3 {[%clk 0:02:58.8]} 4... Bg7 {[%clk 0:02:46.9]} 5. Nc3 {[%clk 0:02:57]} 5...
d5 {[%clk 0:02:46]} 6. Qd2 {[%clk 0:02:57.4]} 6... O-O {[%clk 0:02:45.2]} 7. Bh6
{[%clk 0:02:55.1]} 7... c5 {[%clk 0:02:43.9]} 8. Bxg7 {[%clk 0:02:52.9]} 8...
Kxg7 {[%clk 0:02:42.8]} 9. e3 {[%clk 0:02:45.9]} 9... Nc6 {[%clk 0:02:39.9]} 10.
O-O-O {[%clk 0:02:41.2]} 10... Qa5 {[%clk 0:02:35.3]} 11. Kb1 {[%clk 0:02:36.5]}
11... Bf5 {[%clk 0:02:30.2]} 12. dxc5 {[%clk 0:02:20.6]} 12... Nb4 {[%clk
0:01:59.8]} 13. Nd4 {[%clk 0:02:18]} 13... Ne4 {[%clk 0:01:36.2]} 14. Nxf5+
{[%clk 0:02:12.7]} 14... gxf5 {[%clk 0:01:08.3]} 15. Qd4+ {[%clk 0:01:44.1]}
15... e5 {[%clk 0:01:05.1]} 16. Qxe5+ {[%clk 0:01:41.7]} 16... f6 {[%clk
0:01:04.8]} 17. Qd4 {[%clk 0:01:03.1]} 17... Nxc3+ {[%clk 0:01:02.7]} 18. bxc3
{[%clk 0:01:00.9]} 18... Qxa2+ {[%clk 0:01:01.7]} 0-1

[Event "Late-Titled-Tuesday-Blitz-April-02-2024"]
[Site "Chess.com"]
[Date "2024.04.02"]
[Round "3"]
[White "Speed-O-Sonic"]
[Black "xasid81"]
[Result "0-1"]
[WhiteElo "2444"]
[BlackElo "2626"]
[TimeControl "180+1"]
[EndTime "14:25:13 PDT"]
[Termination "xasid81 won by resignation"]

1. e4 {[%clk 0:03:00.4]} 1... c6 {[%clk 0:03:00.9]} 2. Nf3 {[%clk 0:02:58.5]}
2... d5 {[%clk 0:03:01.8]} 3. exd5 {[%clk 0:02:59]} 3... cxd5 {[%clk 0:03:02.7]}
4. d4 {[%clk 0:02:59.7]} 4... Nf6 {[%clk 0:03:03.3]} 5. Ne5 {[%clk 0:02:59.7]}
5... a6 {[%clk 0:03:04]} 6. c4 {[%clk 0:02:55.4]} 6... dxc4 {[%clk 0:03:01.8]}
7. Bxc4 {[%clk 0:02:56.3]} 7... e6 {[%clk 0:03:02.7]} 8. Nc3 {[%clk 0:02:55.5]}
8... Be7 {[%clk 0:03:02.8]} 9. O-O {[%clk 0:02:47]} 9... O-O {[%clk 0:03:03.4]}
10. Bg5 {[%clk 0:02:44.2]} 10... b5 {[%clk 0:03:03.6]} 11. Be2 {[%clk
0:02:31.6]} 11... Bb7 {[%clk 0:03:03.7]} 12. Bf3 {[%clk 0:02:32.3]} 12... Bxf3
{[%clk 0:03:00.8]} 13. Qxf3 {[%clk 0:02:33.2]} 13... Ra7 {[%clk 0:03:01.5]} 14.
Rfd1 {[%clk 0:02:32.2]} 14... Nd5 {[%clk 0:02:57.2]} 15. Bxe7 {[%clk 0:02:26.3]}
15... Rxe7 {[%clk 0:02:53.2]} 16. Nxd5 {[%clk 0:02:24.2]} 16... Qxd5 {[%clk
0:02:54.1]} 17. Qxd5 {[%clk 0:02:24.2]} 17... exd5 {[%clk 0:02:55]} 18. Rac1
{[%clk 0:02:24.6]} 18... Rfe8 {[%clk 0:02:53.6]} 19. g3 {[%clk 0:02:10.6]} 19...
f6 {[%clk 0:02:52.8]} 20. Nf3 {[%clk 0:02:11.1]} 20... Re2 {[%clk 0:02:49]} 21.
Rd2 {[%clk 0:02:11]} 21... Rxd2 {[%clk 0:02:48.7]} 22. Nxd2 {[%clk 0:02:11.9]}
22... Nd7 {[%clk 0:02:46.9]} 23. Rc7 {[%clk 0:02:10.1]} 23... Nf8 {[%clk
0:02:43.8]} 24. Rc6 {[%clk 0:02:09.5]} 24... Ne6 {[%clk 0:02:42.8]} 25. Nb3
{[%clk 0:01:57.8]} 25... a5 {[%clk 0:02:41]} 26. Nxa5 {[%clk 0:01:50.5]} 26...
Nxd4 {[%clk 0:02:41.3]} 27. Rd6 {[%clk 0:01:51]} 27... Nf3+ {[%clk 0:02:38.5]}
28. Kg2 {[%clk 0:01:50.7]} 28... Ne1+ {[%clk 0:02:38.9]} 29. Kf1 {[%clk
0:01:48.3]} 29... Nd3 {[%clk 0:02:37.4]} 30. Rxd5 {[%clk 0:01:47.1]} 30... Re1+
{[%clk 0:02:36.7]} 31. Kg2 {[%clk 0:01:47]} 31... Nxb2 {[%clk 0:02:36.4]} 32.
Rxb5 {[%clk 0:01:46.5]} 32... Re2 {[%clk 0:02:36.6]} 33. Kf3 {[%clk 0:01:36.2]}
33... Rc2 {[%clk 0:02:36.1]} 34. Nb3 {[%clk 0:00:50.4]} 34... Nd1 {[%clk
0:02:31.9]} 35. a4 {[%clk 0:00:49.6]} 35... Rxf2+ {[%clk 0:02:30.9]} 36. Kg4
{[%clk 0:00:50.2]} 36... Ne3+ {[%clk 0:02:26.2]} 37. Kh3 {[%clk 0:00:50.3]}
37... h5 {[%clk 0:02:24.7]} 38. Rxh5 {[%clk 0:00:20.7]} 38... g5 {[%clk
0:02:24.6]} 0-1

[Event "Late-Titled-Tuesday-Blitz-April-02-2024"]
[Site "Chess.com"]
[Date "2024.04.02"]
[Round "3"]
[White "Smiechu"]
[Black "BardArtem"]
[Result "0-1"]
[WhiteElo "2485"]
[BlackElo "2850"]
[TimeControl "180+1"]
[EndTime "14:25:32 PDT"]
[Termination "BardArtem won by resignation"]

1. e4 {[%clk 0:03:00.9]} 1... d5 {[%clk 0:02:57.9]} 2. exd5 {[%clk 0:02:59.8]}
2... Qxd5 {[%clk 0:02:58.8]} 3. Nf3 {[%clk 0:03:00.1]} 3... Bg4 {[%clk
0:02:57.6]} 4. Be2 {[%clk 0:02:59.5]} 4... Nc6 {[%clk 0:02:57.5]} 5. d4 {[%clk
0:02:59.3]} 5... O-O-O {[%clk 0:02:57.4]} 6. Be3 {[%clk 0:02:59.2]} 6... e5
{[%clk 0:02:57.1]} 7. c4 {[%clk 0:02:57.6]} 7... Qa5+ {[%clk 0:02:56]} 8. Bd2
{[%clk 0:02:57.6]} 8... Qa6 {[%clk 0:02:54.9]} 9. c5 {[%clk 0:02:33.5]} 9...
Bxf3 {[%clk 0:02:54.4]} 10. gxf3 {[%clk 0:02:29.9]} 10... b5 {[%clk 0:02:54.2]}
11. a4 {[%clk 0:01:49.7]} 11... Nxd4 {[%clk 0:02:50.5]} 12. Nc3 {[%clk
0:01:49.7]} 12... Qg6 {[%clk 0:02:38.8]} 13. axb5 {[%clk 0:01:25.6]} 13... Qg2
{[%clk 0:02:37.8]} 14. Rf1 {[%clk 0:01:25]} 14... Bxc5 {[%clk 0:02:37.3]} 15.
Ne4 {[%clk 0:01:19.3]} 15... Bb6 {[%clk 0:02:31.4]} 16. Ra3 {[%clk 0:00:59.5]}
16... f5 {[%clk 0:02:15.4]} 17. Ng3 {[%clk 0:00:34.5]} 17... f4 {[%clk
0:02:13.9]} 18. Ne4 {[%clk 0:00:34]} 18... Nf6 {[%clk 0:02:14.4]} 19. Nxf6
{[%clk 0:00:23.8]} 19... gxf6 {[%clk 0:02:15.3]} 20. Qa4 {[%clk 0:00:23.5]}
20... Nxe2 {[%clk 0:01:52.2]} 21. Kxe2 {[%clk 0:00:23.1]} 21... Rxd2+ {[%clk
0:01:51.9]} 22. Kxd2 {[%clk 0:00:21.6]} 22... Qxf1 {[%clk 0:01:52.2]} 23. Qe4
{[%clk 0:00:17.8]} 23... Rd8+ {[%clk 0:01:50.7]} 24. Kc2 {[%clk 0:00:16.4]}
24... Qd1+ {[%clk 0:01:49.5]} 25. Kc3 {[%clk 0:00:16.5]} 25... Qd4+ {[%clk
0:01:40]} 0-1

[Event "Late-Titled-Tuesday-Blitz-April-02-2024"]
[Site "Chess.com"]
[Date "2024.04.02"]
[Round "3"]
[White "rasmussvane"]
[Black "zajka-molotok"]
[Result "1-0"]
[WhiteElo "2902"]
[BlackElo "2545"]
[TimeControl "180+1"]
[EndTime "14:25:41 PDT"]
[Termination "rasmussvane won by checkmate"]

1. b3 {[%clk 0:02:59.8]} 1... d5 {[%clk 0:02:59.4]} 2. Bb2 {[%clk 0:02:59.1]}
2... Bf5 {[%clk 0:03:00]} 3. g3 {[%clk 0:02:57]} 3... e6 {[%clk 0:03:00.4]} 4.
Bg2 {[%clk 0:02:57.5]} 4... Nf6 {[%clk 0:03:00.5]} 5. d3 {[%clk 0:02:58.1]} 5...
c6 {[%clk 0:02:59.3]} 6. Nd2 {[%clk 0:02:58.3]} 6... h6 {[%clk 0:02:58.7]} 7. e4
{[%clk 0:02:58.1]} 7... Bh7 {[%clk 0:02:57.7]} 8. Nh3 {[%clk 0:02:55.4]} 8...
Be7 {[%clk 0:02:43]} 9. O-O {[%clk 0:02:55.1]} 9... O-O {[%clk 0:02:42.9]} 10.
Qe2 {[%clk 0:02:55.5]} 10... a5 {[%clk 0:02:41.3]} 11. a3 {[%clk 0:02:55.4]}
11... Na6 {[%clk 0:02:29.6]} 12. Kh1 {[%clk 0:02:54.6]} 12... Nc5 {[%clk
0:02:21.3]} 13. e5 {[%clk 0:02:53.2]} 13... Nfd7 {[%clk 0:02:20.5]} 14. f4
{[%clk 0:02:51.9]} 14... a4 {[%clk 0:01:49.8]} 15. b4 {[%clk 0:02:51.1]} 15...
Na6 {[%clk 0:01:50.3]} 16. Nf3 {[%clk 0:02:44.4]} 16... c5 {[%clk 0:01:45.4]}
17. bxc5 {[%clk 0:02:45.3]} 17... Naxc5 {[%clk 0:01:43.6]} 18. Nd4 {[%clk
0:02:44]} 18... Qc7 {[%clk 0:01:36.4]} 19. Rae1 {[%clk 0:02:35.6]} 19... Rfe8
{[%clk 0:01:14]} 20. f5 {[%clk 0:02:31.6]} 20... Bf8 {[%clk 0:01:07.3]} 21. Nf4
{[%clk 0:02:25.5]} 21... exf5 {[%clk 0:00:38.3]} 22. Nxd5 {[%clk 0:02:24.7]}
22... Qxe5 {[%clk 0:00:38.4]} 23. Qf2 {[%clk 0:02:13.8]} 23... Qb8 {[%clk
0:00:37.2]} 24. Nxf5 {[%clk 0:02:13.5]} 24... Rxe1 {[%clk 0:00:36]} 25. Nxh6+
{[%clk 0:02:13.7]} 25... Kh8 {[%clk 0:00:27.3]} 26. Nxf7+ {[%clk 0:02:14.1]}
26... Kg8 {[%clk 0:00:27.8]} 27. Rxe1 {[%clk 0:02:06.4]} 27... Bg6 {[%clk
0:00:27.2]} 28. Ne7+ {[%clk 0:01:42]} 28... Bxe7 {[%clk 0:00:25.4]} 29. Rxe7
{[%clk 0:01:42.9]} 29... Qf8 {[%clk 0:00:21.7]} 30. Nh6+ {[%clk 0:01:43.1]}
30... gxh6 {[%clk 0:00:19.6]} 31. Bd5+ {[%clk 0:01:42.7]} 31... Bf7 {[%clk
0:00:15.6]} 32. Bxf7+ {[%clk 0:01:41.7]} 32... Kh7 {[%clk 0:00:13.4]} 33. Qf5#
{[%clk 0:01:41.4]} 1-0

[Event "Late-Titled-Tuesday-Blitz-April-02-2024"]
[Site "Chess.com"]
[Date "2024.04.02"]
[Round "3"]
[White "egnfanclub"]
[Black "JaackCamel"]
[Result "1-0"]
[WhiteElo "2380"]
[BlackElo "2185"]
[TimeControl "180+1"]
[EndTime "14:25:41 PDT"]
[Termination "egnfanclub won by checkmate"]

1. e4 {[%clk 0:03:00.9]} 1... e6 {[%clk 0:02:59.6]} 2. d4 {[%clk 0:03:00.7]}
2... d5 {[%clk 0:02:59.1]} 3. Nc3 {[%clk 0:03:00.5]} 3... Bb4 {[%clk 0:02:58]}
4. Ne2 {[%clk 0:02:59.8]} 4... dxe4 {[%clk 0:02:55.6]} 5. a3 {[%clk 0:03:00.1]}
5... Be7 {[%clk 0:02:55]} 6. Nxe4 {[%clk 0:02:59.8]} 6... Nf6 {[%clk 0:02:54.5]}
7. N2c3 {[%clk 0:02:57.9]} 7... O-O {[%clk 0:02:53.4]} 8. Bd3 {[%clk 0:02:57.3]}
8... Nbd7 {[%clk 0:02:48.8]} 9. h4 {[%clk 0:02:51.1]} 9... h6 {[%clk 0:02:47.3]}
10. Be3 {[%clk 0:02:39.8]} 10... b6 {[%clk 0:02:46.5]} 11. Qd2 {[%clk
0:02:39.3]} 11... Ng4 {[%clk 0:02:32.7]} 12. O-O-O {[%clk 0:02:32.1]} 12... Nxe3
{[%clk 0:02:24.9]} 13. Qxe3 {[%clk 0:02:31.9]} 13... Bb7 {[%clk 0:02:23.7]} 14.
g4 {[%clk 0:02:01.4]} 14... f5 {[%clk 0:02:18.1]} 15. gxf5 {[%clk 0:01:50.1]}
15... exf5 {[%clk 0:02:16.9]} 16. Rhg1 {[%clk 0:01:34.8]} 16... fxe4 {[%clk
0:02:02.6]} 17. Qxh6 {[%clk 0:01:33.4]} 17... Rf7 {[%clk 0:01:46.3]} 18. Bc4
{[%clk 0:01:28]} 18... Qf8 {[%clk 0:01:25.8]} 19. Rg6 {[%clk 0:00:50]} 19... Nf6
{[%clk 0:01:22.1]} 20. Rdg1 {[%clk 0:00:46.3]} 20... Bd5 {[%clk 0:01:08.4]} 21.
Nxd5 {[%clk 0:00:41.7]} 21... Ng4 {[%clk 0:00:59.4]} 22. Nxe7+ {[%clk
0:00:34.1]} 22... Qxe7 {[%clk 0:00:56.9]} 23. Qxg7# {[%clk 0:00:33.9]} 1-0

[Event "Late-Titled-Tuesday-Blitz-April-02-2024"]
[Site "Chess.com"]
[Date "2024.04.02"]
[Round "3"]
[White "rcmz"]
[Black "PapaieDudu"]
[Result "0-1"]
[WhiteElo "2204"]
[BlackElo "2389"]
[TimeControl "180+1"]
[EndTime "14:25:44 PDT"]
[Termination "PapaieDudu won by resignation"]

1. b4 {[%clk 0:03:00.9]} 1... b5 {[%clk 0:02:46]} 2. Bb2 {[%clk 0:03:00.3]} 2...
Bb7 {[%clk 0:02:46]} 3. e3 {[%clk 0:02:59.6]} 3... e6 {[%clk 0:02:46.2]} 4. f4
{[%clk 0:02:58]} 4... f5 {[%clk 0:02:43.9]} 5. Nf3 {[%clk 0:02:56.6]} 5... Nf6
{[%clk 0:02:43.8]} 6. a3 {[%clk 0:02:56.7]} 6... a6 {[%clk 0:02:43.7]} 7. Be2
{[%clk 0:02:48.9]} 7... Be7 {[%clk 0:02:43.8]} 8. O-O {[%clk 0:02:48.6]} 8...
O-O {[%clk 0:02:44.4]} 9. c4 {[%clk 0:02:48.6]} 9... c5 {[%clk 0:02:44.5]} 10.
bxc5 {[%clk 0:02:40.3]} 10... bxc4 {[%clk 0:02:44]} 11. Bxc4 {[%clk 0:02:32.5]}
11... Bxc5 {[%clk 0:02:44.6]} 12. Qc2 {[%clk 0:02:28.9]} 12... Qe7 {[%clk
0:02:39.2]} 13. Nc3 {[%clk 0:02:17.9]} 13... Nc6 {[%clk 0:02:39.3]} 14. Na4
{[%clk 0:02:17]} 14... Ba7 {[%clk 0:02:39.2]} 15. Ne5 {[%clk 0:02:10.3]} 15...
Rac8 {[%clk 0:02:35.3]} 16. Nxc6 {[%clk 0:02:03.2]} 16... Rxc6 {[%clk
0:02:30.3]} 17. Qb3 {[%clk 0:02:01.7]} 17... d5 {[%clk 0:02:26.7]} 18. Be2
{[%clk 0:01:55.9]} 18... Ne4 {[%clk 0:02:25.9]} 19. Rfd1 {[%clk 0:01:45.1]}
19... Qh4 {[%clk 0:02:22.3]} 20. Bf3 {[%clk 0:01:32.5]} 20... Qf2+ {[%clk
0:02:12]} 21. Kh1 {[%clk 0:01:31.1]} 21... Rf7 {[%clk 0:01:58.8]} 22. Bxe4
{[%clk 0:01:13.5]} 22... fxe4 {[%clk 0:01:53.2]} 23. Rac1 {[%clk 0:01:09.6]}
23... e5 {[%clk 0:01:40.6]} 24. Rxc6 {[%clk 0:00:53.9]} 24... Bxc6 {[%clk
0:01:40.1]} 25. Bxe5 {[%clk 0:00:51.8]} 25... Bb5 {[%clk 0:01:22.7]} 26. Nc3
{[%clk 0:00:35.7]} 26... Bf1 {[%clk 0:01:18.3]} 0-1